Workbook

Sheet 10 DÍAS (1 UA)
C1: FOLIOS PENDIENTES A LA FECHA DE REPORTE
C5: FOLIOS PENDIENTES A LA FECHA DE REPORTE
B7: TIEMPO DE ATENCIÓN A SOLICITUDES DE INFORMACIÓN, FOLIOS DEL 06 DE ENERO AL 04 DEMAYO DE 2016
B8: ATENDIDAS POR "UNA UNIDAD ADMINISTRATIVA" (10 DÍAS HÁBILES)
B9: Secretaría Técnica | D9: Secretaría Ejecutiva | F9: Contraloría | H9: Dirección Jurídica y Desarrollo Normativo | J9: Dirección de Capacitación y Cultura de la Transparencia | L9: Dirección de Evaluación y Estudios | N9: Dirección de Datos Personales | P9: Dirección de Vinculación con la Sociedad | R9: Dirección de Tecnologías de Información | T9: Dirección de Administración y Finanzas | V9: Dirección de Comunicación Social | X9: Oficina de Información Pública
B10: Folio | C10: Días | D10: Folio | E10: Días | F10: Folio | G10: Días | H10: Folio | I10: Días | J10: Folio | K10: Días | L10: Folio | M10: Días | N10: Folio | O10: Días | P10: Folio | Q10: Días | R10: Folio | S10: Días | T10: Folio | U10: Días | V10: Folio | W10: Días | X10: Folio | Y10: Días
A11: 1 | B11: 3100000015116 | C11: 6 | D11: 3100000142115 | E11: 7 | F11: 3100000016216 | G11: 2 | H11: 3100000143015 | I11: 10 | J11: 3100000011816 | K11: 3 | L11: 3100000147115 | M11: 10 | N11: 3100000004416 | O11: 9 | P11: 3100000016116 | Q11: 5 | R11: 3100000000416 | S11: 3 | T11: 3100000146615 | U11: 5 | V11: 3100000015216 | W11: 5 | X11: 3100000145415 | Y11: 3
A12: =SUM(A11+1) -> 2 | B12: 3100000022516 | C12: 5 | D12: 3100000142415 | E12: 7 | F12: 3100000029316 | G12: 9 | H12: 3100000143215 | I12: 10 | J12: 3100000014816 | K12: 4 | L12: 3100000005616 | M12: 8 | N12: 3100000016516 | O12: 5 | P12: 3100000030716 | Q12: 9 | R12: 3100000006116 | S12: 7 | T12: 3100000142515 | U12: 10 | V12: 3100000027516 | W12: 1 | X12: 3100000007016 | Y12: 1
A13: =SUM(A12+1) -> 3 | B13: 3100000024316 | C13: 5 | D13: 3100000017016 | E13: 3 | F13: 3100000029416 | G13: 5 | H13: 3100000001516 | I13: 9 | J13: 3100000015516 | K13: 5 | L13: 3100000005716 | M13: 8 | N13: 3100000041216 | O13: 8 | P13: 3100000065516 | Q13: 6 | R13: 3100000011416 | S13: 1 | T13: 3100000142615 | U13: 10 | V13: 3100000027516 | W13: 2 | X13: 3100000038416 | Y13: 5
A14: 4 | B14: 3100000058416 | C14: 10 | D14: 3100000019516 | E14: 10 | F14: 3100000049916 | G14: 3 | H14: 3100000001616 | I14: 9 | J14: 3100000042816 | K14: 8 | L14: 3100000006716 | M14: 10 | P14: 3100000065816 | Q14: 2 | R14: 3100000011716 | S14: 1 | T14: 3100000001416 | U14: 5 | V14: 3100000049416 | W14: 8 | X14: 3100000069216 | Y14: 5
A15: 5 | B15: 3100000058516 | C15: 10 | D15: 3100000019616 | E15: 10 | F15: 3100000067116 | G15: 5 | H15: 3100000001716 | I15: 9 | J15: 3100000043916 | K15: 8 | L15: 3100000012216 | M15: 10 | P15: 3100000072816 | Q15: 5 | R15: 3100000016916 | S15: 8 | T15: 3100000003916 | U15: 10 | X15: 3100000069316 | Y15: 5
A16: 6 | B16: 3100000068516 | C16: 10 | D16: 3100000030216 | E16: 7 | F16: 3100000067216 | G16: 5 | H16: 3100000001816 | I16: 9 | J16: 3100000058916 | K16: 1 | L16: 3100000015616 | M16: 6 | R16: 3100000030416 | S16: 6 | T16: 3100000010416 | U16: 9 | X16: 3100000071516 | Y16: 3
A17: 7 | B17: 3100000074716 | C17: 5 | D17: 3100000035516 | E17: 10 | H17: 3100000001916 | I17: 9 | L17: 3100000017116 | M17: 7 | R17: 3100000035216 | S17: 0 | T17: 3100000011916 | U17: 8 | X17: 3100000074116 | Y17: 1
A18: 8 | D18: 3100000035616 | E18: 10 | H18: 3100000002016 | I18: 9 | L18: 3100000021616 | M18: 8 | R18: 3100000035316 | S18: 0 | T18: 3100000012116 | U18: 10 | X18: 3100000074216 | Y18: 4
A19: 9 | D19: 3100000043816 | E19: 9 | H19: 3100000002116 | I19: 9 | L19: 3100000024716 | M19: 10 | R19: 3100000035416 | S19: 6 | T19: 3100000015916 | U19: 3 | X19: 3100000075016 | Y19: 3
A20: 10 | D20: 3100000052116 | E20: 10 | H20: 3100000002216 | I20: 9 | L20: 3100000028016 | M20: 9 | R20: 3100000046916 | S20: 1 | T20: 3100000016716 | U20: 9
A21: 11 | D21: 3100000052216 | E21: 10 | H21: 3100000002316 | I21: 9 | L21: 3100000028116 | M21: 7 | R21: 3100000060416 | S21: 5 | T21: 3100000017216 | U21: 7
A22: 12 | D22: 3100000064116 | E22: 7 | H22: 3100000002416 | I22: 9 | L22: 3100000028216 | M22: 7 | T22: 3100000024916 | U22: 6
A23: 13 | D23: 3100000065916 | E23: 10 | H23: 3100000002516 | I23: 9 | L23: 3100000028416 | M23: 7 | T23: 3100000025016 | U23: 8
A24: 14 | D24: 3100000066016 | E24: 10 | H24: 3100000002616 | I24: 9 | L24: 3100000028616 | M24: 8 | T24: 3100000025316 | U24: 5
A25: 15 | D25: 3100000066416 | E25: 10 | H25: 3100000002716 | I25: 9 | L25: 3100000028716 | M25: 7 | T25: 3100000026016 | U25: 10
A26: 16 | D26: 3100000066516 | E26: 10 | H26: 3100000002816 | I26: 9 | L26: 3100000032716 | M26: 9 | T26: 3100000026116 | U26: 9
A27: 17 | H27: 3100000002916 | I27: 9 | L27: 3100000032816 | M27: 9 | T27: 3100000026716 | U27: 7
A28: 18 | H28: 3100000003016 | I28: 9 | L28: 3100000034716 | M28: 8 | T28: 3100000026816 | U28: 7
A29: 19 | H29: 3100000003116 | I29: 9 | L29: 3100000039016 | M29: 8 | T29: 3100000027116 | U29: 7
A30: 20 | H30: 3100000003216 | I30: 9 | L30: 3100000041316 | M30: 6 | T30: 3100000028816 | U30: 3
A31: 21 | H31: 3100000003316 | I31: 9 | L31: 3100000046416 | M31: 9 | T31: 3100000029016 | U31: 10
A32: 22 | H32: 3100000003416 | I32: 8 | L32: 3100000047616 | M32: 9 | T32: 3100000029716 | U32: 10
A33: 23 | H33: 3100000003516 | I33: 9 | L33: 3100000047816 | M33: 9 | T33: 3100000030916 | U33: 10
A34: 24 | H34: 3100000003616 | I34: 8 | L34: 3100000047916 | M34: 9 | T34: 3100000031616 | U34: 7
A35: 25 | H35: 3100000003716 | I35: 8 | L35: 3100000053516 | M35: 10 | T35: 3100000036816 | U35: 10
A36: 26 | H36: 3100000003816 | I36: 9 | L36: 3100000055316 | M36: 1 | T36: 3100000041416 | U36: 10
A37: 27 | H37: 3100000004016 | I37: 8 | L37: 3100000055416 | M37: 1 | T37: 3100000043216 | U37: 5
A38: 28 | H38: 3100000004116 | I38: 8 | L38: 3100000055516 | M38: 1 | T38: 3100000043416 | U38: 8
A39: 29 | H39: 3100000004216 | I39: 10 | L39: 3100000055616 | M39: 1 | T39: 3100000043516 | U39: 10
A40: 30 | H40: 3100000005816 | I40: 10 | L40: 3100000055716 | M40: 1 | T40: 3100000044116 | U40: 9
A41: 31 | H41: 3100000006016 | I41: 10 | L41: 3100000055816 | M41: 1 | T41: 3100000045416 | U41: 5
A42: 32 | H42: 3100000010716 | I42: 10 | L42: 3100000055916 | M42: 1 | T42: 3100000047116 | U42: 10
A43: 33 | H43: 3100000011016 | I43: 10 | L43: 3100000056016 | M43: 1 | T43: 3100000048616 | U43: 10
A44: 34 | H44: 3100000011516 | I44: 10 | L44: 3100000056116 | M44: 1 | T44: 3100000051816 | U44: 6
A45: 35 | H45: 3100000011616 | I45: 10 | L45: 3100000056216 | M45: 1 | T45: 3100000054516 | U45: 3
A46: 36 | H46: 3100000014416 | I46: 5 | L46: 3100000056316 | M46: 1 | T46: 3100000054616 | U46: 3
A47: 37 | H47: ´3100000034816 | I47: 10 | L47: 3100000056416 | M47: 1 | T47: 3100000067716 | U47: 10
A48: 38 | H48: 3100000035016 | I48: 10 | L48: 3100000056516 | M48: 3 | T48: 3100000067816 | U48: 10
A49: 39 | H49: 3100000039316 | I49: 10 | L49: 3100000056616 | M49: 3 | T49: 3100000067916 | U49: 10
A50: 40 | H50: 3100000043716 | I50: 9 | L50: 3100000075416 | M50: 5 | T50: 3100000068016 | U50: 10
A51: 41 | H51: 3100000044216 | I51: 10 | T51: 3100000068116 | U51: 10
A52: 42 | H52: 3100000044316 | I52: 10 | T52: 3100000070916 | U52: 3
A53: 43 | H53: 3100000045116 | I53: 10 | T53: 3100000075116 | U53: 7
A54: 44 | H54: 3100000045616 | I54: 10
A55: 45 | H55: 3100000046016 | I55: 10
A56: 46 | H56: 3100000053616 | I56: 10
A57: 47 | H57: 3100000053716 | I57: 10
A58: 48 | H58: 3100000053816 | I58: 10
A59: 49 | H59: 3100000053916 | I59: 10
A60: 50 | H60: 3100000054016 | I60: 10
A61: 51 | H61: 3100000057216 | I61: 10
A62: 52 | H62: 3100000057416 | I62: 10
A63: 53 | H63: 3100000057516 | I63: 10
A64: 54 | H64: 3100000057816 | I64: 10
A65: 55 | H65: 3100000059316 | I65: 10
A66: 56 | H66: 3100000063616 | I66: 10
A67: 57 | H67: 3100000064816 | I67: 5
A68: 58 | H68: 3100000065716 | I68: 10
A69: 59 | H69: 3100000067616 | I69: 7
A70: 60 | H70: 3100000068316 | I70: 10
A71: 61
A72: 62
A73: 63
A74: 64
A75: 65
A76: 66
A77: =SUM(A76+1) -> 67
A78: 68
A79: 69
A80: 70
A81: 71
A82: 72
A83: 73
A84: 74
A85: 75
A86: 76
A87: 77
A88: 78
A89: 79
A90: 80
A91: 81
A92: 82
A93: 83
A94: 84
A95: 85
A96: 86
A97: 87
A98: 88
A99: 89
A100: 90
A101: 91
A102: 92
A103: 93
A104: 94
A105: 95
A106: 96
A107: 97
A108: 98
A109: 99
A110: 100
A111: 101
A112: 102
A113: 103
A114: 104
A115: 105
A116: 106
A117: 107
A118: 108
A119: 109
A120: 110
B122: PROMEDIO | C122: =AVERAGE(C11:C121) -> 7.285714286 | D122: PROMEDIO | E122: =AVERAGE(E11:E121) -> 8.75 | F122: PROMEDIO | G122: =AVERAGE(G11:G121) -> 4.833333333 | H122: PROMEDIO | I122: =AVERAGE(I11:I121) -> 9.25 | J122: PROMEDIO | K122: =AVERAGE(K11:K121) -> 4.833333333 | L122: PROMEDIO | M122: =AVERAGE(M11:M121) -> 5.775 | N122: PROMEDIO | O122: =AVERAGE(O11:O121) -> 7.333333333 | P122: PROMEDIO | Q122: =AVERAGE(Q11:Q121) -> 5.4 | R122: PROMEDIO | S122: =AVERAGE(S11:S121) -> 3.454545455 | T122: PROMEDIO | U122: =AVERAGE(U11:U121) -> 7.76744186 | V122: PROMEDIO | W122: =AVERAGE(W11:W121) -> 4 | X122: PROMEDIO | Y122: =AVERAGE(Y11:Y121) -> 3.333333333
B123: SUMA | C123: =COUNT(C11:C120) -> 7 | E123: =COUNT(E11:E120) -> 16 | G123: =COUNT(G11:G120) -> 6 | I123: =COUNT(I11:I120) -> 60 | K123: =COUNT(K11:K120) -> 6 | M123: =COUNT(M11:M120) -> 40 | O123: =COUNT(O11:O120) -> 3 | Q123: =COUNT(Q11:Q120) -> 5 | S123: =COUNT(S11:S120) -> 11 | U123: =COUNT(U11:U120) -> 43 | W123: =COUNT(W11:W120) -> 4 | Y123: =COUNT(Y11:Y120) -> 9 | Z123: =SUM(C123:Y123) -> 210

Sheet 20 DÍAS (1 UA)
C3: FOLIOS PENDIENTES A LA FECHA DE REPORTE
B5: TIEMPO DE ATENCIÓN A SOLICITUDES DE INFORMACIÓN, FOLIOS DEL 06 DE ENERO AL 04 DE MAYO DE 2016
B6: ATENDIDAS POR "UNA UNIDAD ADMINISTRATIVA" (20 DÍAS HÁBILES)
B7: Secretaría Técnica | D7: Secretaría Ejecutiva | F7: Contraloría | H7: Dirección Jurídica y Desarrollo Normativo | J7: Dirección de Capacitación y Cultura de la Transparencia | L7: Dirección de Evaluación y Estudios | N7: Dirección de Datos Personales | P7: Dirección de Vinculación con la Sociedad | R7: Dirección de Tecnologías de Información | T7: Dirección de Administración y Finanzas | V7: Dirección de Comunicación Social | X7: Oficina de Información Pública
B8: Folio | C8: Días | D8: Folio | E8: Días | F8: Folio | G8: Días | H8: Folio | I8: Días | J8: Folio | K8: Días | L8: Folio | M8: Días | N8: Folio | O8: Días | P8: Folio | Q8: Días | R8: Folio | S8: Días | T8: Folio | U8: Días | V8: Folio | W8: Días | X8: Folio | Y8: Días
A9: 1 | D9: 3100000060216 | E9: 20 | H9: 3100000135615 | I9: 20 | L9: 3100000004516 | M9: 13 | N9: 3100000142815 | O9: 20 | T9: 3100000145515 | U9: 11
A10: 2 | H10: 3100000139015 | I10: 20 | L10: 3100000005916 | M10: 14 | N10: 3100000063816 | O10: 20 | T10: 3100000004316 | U10: 20
A11: 3 | H11: 3100000011216 | I11: 14 | L11: 3100000060916 | M11: 13 | N11: 3100000064016 | O11: 20 | T11: 3100000031116 | U11: 15
A12: 4 | H12: 3100000011316 | I12: 18 | N12: 3100000064216 | O12: 20 | T12: 3100000063716 | U12: 11
A13: 5 | H13: 3100000044416 | I13: 20 | N13: 3100000065016 | O13: 18 | T13: 3100000068216 | U13: 14
A14: 6 | N14: 3100000070016 | O14: 15
A15: 7 | N15: 3100000071616 | O15: 14
A16: 8 | N16: 3100000072016 | O16: 14
A17: 9
A18: 10
A19: 11
A20: 12
B21: PROMEDIO | C21: =AVERAGE(C9:C20) ->  | D21: PROMEDIO | E21: =AVERAGE(E9:E20) -> 20 | F21: PROMEDIO | G21: =AVERAGE(G9:G20) ->  | H21: PROMEDIO | I21: =AVERAGE(I9:I20) -> 18.4 | J21: PROMEDIO | K21: =AVERAGE(K9:K20) ->  | L21: PROMEDIO | M21: =AVERAGE(M9:M20) -> 13.33333333 | N21: PROMEDIO | O21: =AVERAGE(O9:O20) -> 17.625 | P21: PROMEDIO | Q21: =AVERAGE(Q9:Q20) ->  | R21: PROMEDIO | S21: =AVERAGE(S9:S20) ->  | T21: PROMEDIO | U21: =AVERAGE(U9:U20) -> 14.2 | V21: PROMEDIO | W21: =AVERAGE(W9:W20) ->  | X21: PROMEDIO | Y21: =AVERAGE(Y9:Y20) -> 
C22: =COUNT(C9:C20) -> 0 | E22: =COUNT(E9:E20) -> 1 | G22: =COUNT(G9:G20) -> 0 | I22: =COUNT(I9:I20) -> 5 | K22: =COUNT(K9:K20) -> 0 | M22: =COUNT(M9:M20) -> 3 | O22: =COUNT(O9:O20) -> 8 | Q22: =COUNT(Q9:Q20) -> 0 | S22: =COUNT(S9:S20) -> 0 | U22: =COUNT(U9:U20) -> 5 | W22: =COUNT(W9:W20) -> 0 | Y22: =COUNT(Y9:Y20) -> 0 | Z22: =SUM(C22:Y22) -> 22

Sheet 10 DÍAS (2 o más UA)
C1: FOLIOS PENDIENTES A LA FECHA DE REPORTE
B3: TIEMPO DE ATENCIÓN A SOLICITUDES DE INFORMACIÓN, FOLIOS DEL 06 DE ENERO AL 04 DE MAYO DE 2016
B4: ATENDIDAS POR "DOS O MÁS UNIDADES ADMINISTRATIVAS" (10 DÍAS HÁBILES)
B5: Folio | C5: Secretaría Técnica | D5: Secretaría Ejecutiva | E5: Contraloría | F5: Dirección Jurídica y Desarrollo Normativo | G5: Dirección de Capacitación y Cultura de la Transparencia | H5: Dirección de Evaluación y Estudios | I5: Dirección de Datos Personales | J5: Dirección de Vinculación con la Sociedad | K5: Dirección de Tecnologías de Información | L5: Dirección de Administración y Finanzas | M5: Dirección de Comunicación Social | N5: Oficina de Información Pública
C6: Días | D6: Días | E6: Días | F6: Días | G6: Días | H6: Días | I6: Días | J6: Días | K6: Días | L6: Días | M6: Días | N6: Días
A7: 1 | B7: 3100000143515 | F7: 10 | H7: 6 | K7: 5
A8: 2 | B8: 3100000143715 | E8: 2 | L8: 10
A9: 3 | B9: 3100000143815 | G9: 9 | J9: 5
A10: 4 | B10: 3100000143915 | G10: 9 | J10: 5
A11: 5 | B11: 3100000144515 | E11: 2 | I11: 10
A12: 6 | B12: 3100000145015 | C12: 9 | F12: 10 | K12: 1 | L12: 7
A13: 7 | B13: 3100000145115 | C13: 10 | F13: 10
A14: 8 | B14: 3100000145215 | C14: 10 | K14: 1
A15: 9 | B15: 3100000142715 | D15: 10 | L15: 10
A16: 10 | B16: 3100000146415 | L16: 9 | N16: 0
A17: 11 | B17: 3100000147115 | H17: 10 | N17: 0
A18: 12 | B18: 3100000000216 | C18: 9 | F18: 10
A19: 13 | B19: 3100000004216 | F19: 10 | N19: 0
A20: 14 | B20: 3100000005016 | H20: 8 | I20: 8
A21: 15 | B21: 3100000007216 | C21: 7 | F21: 10 | K21: 8 | L21: 4
A22: 16 | B22: 3100000007616 | F22: 10 | H22: 9
A23: 17 | B23: 3100000007916 | D23: 4 | G23: 4 | H23: 8
A24: 18 | B24: 3100000010216 | G24: 5 | H24: 10
A25: 19 | B25: 3100000010516 | F25: 10 | G25: 5 | N25: 0
A26: 20 | B26: 3100000011116 | C26: 2 | F26: 10
A27: 21 | B27: 3100000014016 | K27: 2 | L27: 5
A28: 22 | B28: 3100000015316 | C28: 3 | F28: 5
A29: 23 | B29: 3100000015416 | C29: 3 | F29: 5
A30: 24 | B30: 3100000016016 | G30: 3 | J30: 6 | L30: 6
A31: 25 | B31: 3100000016616 | C31: 3 | F31: 10
A32: 26 | B32: 3100000017316 | G32: 3 | J32: 4 | L32: 4
A33: 27 | B33: 3100000019916 | C33: 7 | N33: 0
A34: 28 | B34: 3100000022716 | C34: 5 | L34: 5
A35: 29 | B35: 3100000025616 | H35: 9 | K35: 2
A36: 30 | B36: 3100000026516 | H36: 8 | K36: 8
A37: 31 | B37: 3100000026616 | H37: 8 | K37: 8
A38: 32 | B38: 3100000027316 | C38: 3 | F38: 10 | K38: 5
A39: 33 | B39: 3100000027416 | L39: 7 | M39: 3
A40: 34 | B40: 3100000029916 | L40: 10 | M40: 1
A41: 35 | B41: 3100000030016 | D41: 7 | F41: 10
A42: 36 | B42: 3100000030816 | J42: 8 | L42: 10
A43: 37 | B43: 3100000031916 | D43: 5 | F43: 10 | G43: 5
A44: 38 | B44: 3100000032016 | D44: 5 | F44: 10 | G44: 5
A45: 39 | B45: 3100000032916 | D45: 4 | F45: 9 | G45: 4
A46: 40 | B46: 3100000033016 | D46: 4 | F46: 9 | G46: 4
A47: 41 | B47: 3100000033116 | D47: 3 | F47: 8 | G47: 3
A48: 42 | B48: 3100000033216 | D48: 3 | F48: 8 | G48: 3
A49: 43 | B49: 3100000033516 | G49: 3 | L49: 6
A50: 44 | B50: 3100000033616 | G50: 4 | L50: 6
A51: 45 | B51: 3100000033716 | G51: 3 | L51: 6
A52: 46 | B52: 3100000033816 | G52: 6 | L52: 6
A53: 47 | B53: 3100000033916 | G53: 6 | L53: 6
A54: 48 | B54: 3100000034016 | G54: 5 | L54: 10
A55: 49 | B55: 3100000034116 | G55: 5 | L55: 10
A56: 50 | B56: 3100000034216 | G56: 5 | L56: 10
A57: 51 | B57: 3100000034316 | E57: 3 | L57: 10
A58: 52 | B58: 3100000037116 | E58: 3 | F58: 10 | H58: 10 | L58: 10
A59: 53 | B59: 3100000038016 | D59: 0 | F59: 5 | G59: 3
A60: 54 | B60: 3100000040516 | K60: 2 | N60: 1
A61: 55 | B61: 3100000044016 | H61: 9 | I61: 10
A62: 56 | B62: 3100000045216 | F62: 10 | K62: 3
A63: 57 | B63: 3100000045916 | L63: 10 | M63: 9
A64: 58 | B64: 3100000046016 | F64: 10 | I64: 7
A65: 59 | B65: 3100000046616 | C65: 6 | E65: 5 | F65: 10
A66: 60 | B66: 3100000046816 | D66: 9 | N66: 0
A67: 61 | B67: 3100000048216 | C67: 9 | D67: 8 | E67: 7 | F67: 7 | G67: 6 | H67: 7 | I67: 7 | J67: 9 | K67: 7 | L67: 9 | M67: 7
A68: 62 | B68: 3100000048316 | C68: 9 | D68: 8 | E68: 7 | F68: 7 | G68: 6 | H68: 7 | I68: 7 | J68: 5 | K68: 7 | L68: 9 | M68: 7
A69: 63 | B69: 3100000048416 | C69: 9 | D69: 8 | E69: 7 | F69: 7 | G69: 6 | H69: 7 | I69: 7 | J69: 5 | K69: 7 | L69: 9 | M69: 7
A70: 64 | B70: 3100000048516 | C70: 9 | D70: 8 | E70: 7 | F70: 8 | G70: 6 | H70: 7 | I70: 7 | J70: 5 | K70: 7 | L70: 10 | M70: 7
A71: 65 | B71: 3100000049016 | C71: 9 | D71: 8 | E71: 7 | F71: 8 | G71: 6 | H71: 7 | I71: 7 | J71: 9 | K71: 7 | L71: 10 | M71: 7
A72: 66 | B72: 3100000049116 | C72: 9 | D72: 8 | E72: 7 | F72: 8 | G72: 5 | H72: 7 | I72: 7 | J72: 9 | K72: 7 | L72: 9 | M72: 7
A73: 67 | B73: 3100000049216 | C73: 9 | D73: 8 | E73: 7 | F73: 8 | G73: 6 | H73: 9 | I73: 7 | J73: 9 | K73: 9 | L73: 9 | M73: 10
A74: 68 | B74: 3100000049816 | C74: 7 | E74: 5 | F74: 10
A75: 69 | B75: 3100000050516 | H75: 7 | N75: 1
A76: 70 | B76: 3100000050616 | G76: 8 | K76: 6
A77: 71 | B77: 3100000051216 | E77: 8 | F77: 10 | G77: 5 | H77: 8
A78: 72 | B78: 3100000051616 | H78: 3 | K78: 8
A79: 73 | B79: 3100000052416 | G79: 7 | J79: 2 | L79: 10
A80: 74 | B80: 3100000052516 | G80: 7 | J80: 2 | L80: 10
A81: 75 | B81: 3100000054116 | C81: 8 | F81: 10
A82: 76 | B82: 3100000056916 | F82: 10 | H82: 3 | I82: 1
A83: 77 | B83: 3100000057116 | E83: 2 | F83: 10 | N83: 0
A84: 78 | B84: 3100000060816 | G84: 5 | J84: 2
A85: 79 | B85: 3100000066116 | D85: 10 | J85: 10
A86: 80 | B86: 3100000066216 | J86: 10 | L86: 8
A87: 81 | B87: 3100000066316 | D87: 10 | J87: 10
A88: 82 | B88: 3100000066616 | D88: 10 | F88: 10
A89: 83 | B89: 3100000066716 | D89: 10 | J89: 10 | L89: 9
A90: 84 | B90: 3100000066816 | D90: 10 | J90: 10 | L90: 8
A91: 85 | B91: 3100000067016 | E91: 5 | L91: 5
A92: 86 | B92: 3100000067416 | E92: 5 | L92: 5
A93: 87 | B93: 3100000067516 | J93: 9 | L93: 8
A94: 88 | B94: 3100000069416 | D94: 9 | J94: 9 | L94: 8
A95: 89 | B95: 3100000069616 | F95: 10 | H95: 8
A96: 90 | B96: 3100000072316 | D96: 8 | H96: 6
A97: 91 | B97: 3100000072616 | D97: 7 | L97: 3
A98: 92 | B98: 3100000072516 | D98: 9 | F98: 10 | J98: 7
A99: 93 | B99: 3100000072716 | J99: 5 | L99: 1
A100: 94 | B100: 3100000074916 | E100: 2 | L100: 8
B102: PROMEDIO | C102: =AVERAGE(C7:C101) -> 7.045454545 | D102: 7.148148148 | E102: 5.055555556 | F102: 9.05 | G102: 5.147058824 | H102: 7.541666667 | I102: 7.083333333 | J102: 6.875 | K102: 5.5 | L102: 7.738095238 | M102: 6.5 | N102: 0.2222222222
B103: =COUNT(B7:B100) -> 94

Sheet 20 DÍAS (2 o más UA)
C1: FOLIOS PENDIENTES A LA FECHA DE REPORTE | G1: No ampliaron plazo, no se cuenta para el promedio
B3: TIEMPO DE ATENCIÓN A SOLICITUDES DE INFORMACIÓN, FOLIOS DEL 06 DE ENERO AL 04 DE MAYO DE 2016
B4: ATENDIDAS POR "DOS O MÁS UNIDADES ADMINISTRATIVAS" (20 DÍAS HÁBILES)
B5: Folio | C5: Secretaría Técnica | D5: Secretaría Ejecutiva | E5: Contraloría | F5: Dirección Jurídica y Desarrollo Normativo | G5: Dirección de Capacitación y Cultura de la Transparencia | H5: Dirección de Evaluación y Estudios | I5: Dirección de Datos Personales | J5: Dirección de Vinculación con la Sociedad | K5: Dirección de Tecnologías de Información | L5: Dirección de Administración y Finanzas | M5: Dirección de Comunicación Social | N5: Oficina de Información Pública
C6: Días | D6: Días | E6: Días | F6: Días | G6: Días | H6: Días | I6: Días | J6: Días | K6: Días | L6: Días | M6: Días | N6: Días
A7: 1 | B7: 3100000143115 | C7: 13 | F7: 10
A8: 2 | B8: 3100000143415 | H8: 9 | I8: 20 | K8: 5
A9: 3 | B9: 3100000144215 | D9: 8 | L9: 14
A10: 4 | B10: 3100000146115 | H10: 9 | L10: 11 | N10: 0
A11: 5 | B11: 3100000005416 | C11: 10 | H11: 11
A12: 6 | B12: 3100000013316 | F12: 20 | L12: 5
A13: 7 | B13: 3100000050216 | L13: 19 | M13: 10
A14: 8 | B14: 3100000056816 | F14: 20 | I14: 10
A15: 9 | B15: 3100000059716 | C15: 10 | E15: 4 | F15: 8 | G15: 4 | H15: 4 | L15: 20
A16: 10 | B16: 3100000059816 | C16: 10 | E16: 4 | F16: 8 | G16: 4 | H16: 4 | L16: 20
A17: 12 | B17: 3100000059916 | C17: 10 | E17: 4 | F17: 8 | G17: 4 | H17: 4 | L17: 20
A18: 13 | B18: 3100000060016 | C18: 10 | E18: 4 | F18: 8 | G18: 4 | H18: 4 | L18: 20
A19: 14 | B19: 3100000060116 | C19: 10 | E19: 4 | F19: 8 | G19: 4 | H19: 4 | L19: 20
A20: 15 | B20: 3100000070816 | F20: 20 | K20: 3
A21: 16
A22: 17
A23: 18
A24: 19
A25: 20
A26: 21
A27: 22
A28: 23
A29: 24
A30: 25
A31: 26
A32: 27
A33: 28
B34: PROMEDIO | C34: =AVERAGEIF(C7:C33,">10") -> 13 | F34: 20 | H34: 11 | I34: 20 | L34: 18
B35: =COUNT(B7:B20) -> 14

Sheet Solicitudes Acceso restringido
C1: FOLIOS PENDIENTES A LA FECHA DE REPORTE
C2: UNIDAD ADMINISTRATIVA QUE CLASIFICÓ INFORMACIÓN
C3: UNIDAD ADMINISTRATIVA QUE NO CLASIFICÓ INFORMACIÓN. NO SE TOMA EN CUENTA PARA EL PROMEDIO
B5: TIEMPO DE ATENCIÓN A SOLICITUDES DE INFORMACIÓN, FOLIOS DEL 06 DE ENERO AL 04 DE MAYO DE 2016
B6: ACCESO RESTRINGIDO CONTENIDA EN LA RESPUESTA DE UNA O MÁS UNIDADES ADMINISTRATIVAS.
B7: Folio | C7: Secretaría Técnica | D7: Secretaría Ejecutiva | E7: Contraloría | F7: Dirección Jurídica y Desarrollo Normativo | G7: Dirección de Capacitación y Cultura de la Transparencia | H7: Dirección de Evaluación y Estudios | I7: Dirección de Datos Personales | J7: Dirección de Vinculación con la Sociedad | K7: Dirección de Tecnologías de Información | L7: Dirección de Administración y Finanzas | M7: Dirección de Comunicación Social | N7: Oficina de Información Pública | O7: OBSERVACIONES | P7: MODALIDAD | Q7: NO. ACUERDO / SUPUESTO LEGAL
C8: Días | D8: Días | E8: Días | F8: Días | G8: Días | H8: Días | I8: Días | J8: Días | K8: Días | L8: Días | M8: Días | N8: Días
A9: 1 | B9: 3100000009816 | L9: 9 | O9: CRITERIO PLENO | P9: Confidencial | Q9: 0001/SCTE-09-01/2012
A10: 2
A11: 3
A12: 4
A13: 5
A14: 6
A15: 7
A16: 8
A17: 9
A18: 10
B19: PROMEDIO | C19: =SumbyColor($B$2,C9:C18)/CountCcolor($B$2,C9:C18) ->  | D19: =SumbyColor($B$2,D9:D18)/CountCcolor($B$2,D9:D18) ->  | E19: =SumbyColor($B$2,E9:E18)/CountCcolor($B$2,E9:E18) ->  | F19: =SumbyColor($B$2,F9:F18)/CountCcolor($B$2,F9:F18) ->  | G19: =SumbyColor($B$2,G9:G18)/CountCcolor($B$2,G9:G18) ->  | H19: =SumbyColor($B$2,H9:H18)/CountCcolor($B$2,H9:H18) ->  | I19: =SumbyColor($B$2,I9:I18)/CountCcolor($B$2,I9:I18) ->  | J19: =SumbyColor($B$2,J9:J18)/CountCcolor($B$2,J9:J18) ->  | K19: =SumbyColor($B$2,K9:K18)/CountCcolor($B$2,K9:K18) ->  | L19: =SumbyColor($B$2,L9:L18)/CountCcolor($B$2,L9:L18) -> 9 | M19: =SumbyColor($B$2,M9:M18)/CountCcolor($B$2,M9:M18) ->  | N19: =SumbyColor($B$2,N9:N18)/CountCcolor($B$2,N9:N18) -> 
Q22: CRITERIO PLENO
Q23: SE REUNIÓ CT

Sheet 5 DÍAS (1 UA)
C1: FOLIOS PENDIENTES A LA FECHA DE REPORTE
B3: TIEMPO DE ATENCIÓN A SOLICITUDES DE INFORMACIÓN, FOLIOS DEL 6 DE ENERO AL 04 DE MAYO DE 2016
B4: ATENDIDAS POR "UNA UNIDAD ADMINISTRATIVA" (5 DÍAS HÁBILES)
B5: Secretaría Técnica | D5: Secretaría Ejecutiva | F5: Contraloría | H5: Dirección Jurídica y Desarrollo Normativo | J5: Dirección de Capacitación y Cultura de la Transparencia | L5: Dirección de Evaluación y Estudios | N5: Dirección de Datos Personales | P5: Dirección de Vinculación con la Sociedad | R5: Dirección de Tecnologías de Información | T5: Dirección de Administración y Finanzas | V5: Dirección de Comunicación Social | X5: Oficina de Información Pública
B6: Folio | C6: Días | D6: Folio | E6: Días | F6: Folio | G6: Días | H6: Folio | I6: Días | J6: Folio | K6: Días | L6: Folio | M6: Días | N6: Folio | O6: Días | P6: Folio | Q6: Días | R6: Folio | S6: Días | T6: Folio | U6: Días | V6: Folio | W6: Días | X6: Folio | Y6: Días
A7: 1 | D7: 3100000021916 | E7: 5 | F7: 3100000023016 | G7: 4 | H7: 3100000023216 | I7: 5 | P7: 3100000023616 | Q7: 3 | T7: 3100000008216 | U7: 5 | X7: 3100000146215 | Y7: 0
A8: =SUM(A7+1) -> 2 | D8: 3100000022916 | E8: 5 | H8: 3100000057616 | I8: 5 | T8: 3100000008316 | U8: 5 | X8: 3100000146315 | Y8: 0
A9: =SUM(A8+1) -> 3 | H9: 3100000057716 | I9: 5 | T9: 3100000008416 | U9: 5 | X9: 3100000146715 | Y9: 0
A10: 4 | T10: 3100000008516 | U10: 5 | X10: 3100000146815 | Y10: 0
A11: 5 | T11: 3100000008616 | U11: 5 | X11: 3100000146915 | Y11: 0
A12: 6 | T12: 3100000008716 | U12: 5 | X12: 3100000147015 | Y12: 0
A13: 7 | T13: 3100000008816 | U13: 5 | X13: 3100000000116 | Y13: 0
A14: 8 | T14: 3100000008916 | U14: 5 | X14: 3100000000316 | Y14: 0
A15: 9 | T15: 3100000009016 | U15: 5 | X15: 3100000000516 | Y15: 0
A16: 10 | T16: 3100000009116 | U16: 5 | X16: 3100000000616 | Y16: 0
A17: 11 | T17: 3100000009216 | U17: 5 | X17: 3100000000716 | Y17: 0
A18: 12 | T18: 3100000009316 | U18: 5 | X18: 3100000000816 | Y18: 0
A19: 13 | T19: 3100000009416 | U19: 5 | X19: 3100000000916 | Y19: 0
A20: 14 | T20: 3100000009516 | U20: 5 | X20: 3100000001016 | Y20: 0
A21: 15 | T21: 3100000009616 | U21: 5 | X21: 3100000001316 | Y21: 0
A22: 16 | T22: 3100000009716 | U22: 5 | X22: 3100000004816 | Y22: 0
A23: 17 | T23: 3100000015816 | U23: 2 | X23: 3100000005116 | Y23: 0
A24: 18 | T24: 3100000021816 | U24: 3 | X24: 3100000005216 | Y24: 0
A25: 19 | T25: 3100000022016 | U25: 3 | X25: 3100000005316 | Y25: 0
A26: 20 | T26: 3100000022116 | U26: 5 | X26: 3100000005516 | Y26: 0
A27: 21 | T27: 3100000022216 | U27: 4 | X27: 3100000006316 | Y27: 0
A28: 22 | T28: 3100000022316 | U28: 5 | X28: 3100000006816 | Y28: 0
A29: 23 | T29: 3100000022416 | U29: 5 | X29: 3100000006916 | Y29: 0
A30: 24 | T30: 3100000022616 | U30: 2 | X30: 3100000007316 | Y30: 0
A31: 25 | T31: 3100000022816 | U31: 5 | X31: 3100000007416 | Y31: 0
A32: 26 | T32: 3100000023116 | U32: 5 | X32: 3100000007516 | Y32: 0
A33: 27 | T33: 3100000023316 | U33: 5 | X33: 3100000007716 | Y33: 0
A34: 28 | T34: 3100000023816 | U34: 5 | X34: 3100000007816 | Y34: 0
A35: 29 | T35: 3100000023916 | U35: 5 | X35: 3100000008116 | Y35: 0
A36: 30 | T36: 3100000024016 | U36: 5 | X36: 3100000010016 | Y36: 0
A37: 31 | T37: 3100000024116 | U37: 5 | X37: 3100000010116 | Y37: 0
A38: 32 | T38: 3100000024216 | U38: 5 | X38: 3100000010616 | Y38: 0
A39: 33 | T39: 3100000048816 | U39: 5 | X39: 3100000010816 | Y39: 0
A40: 34 | T40: 3100000048916 | U40: 5 | X40: 3100000012016 | Y40: 0
A41: 35 | X41: 3100000012316 | Y41: 0
A42: 36 | X42: 3100000012416 | Y42: 0
A43: 37 | X43: 3100000012516 | Y43: 0
A44: 38 | X44: 3100000012616 | Y44: 0
A45: 39 | X45: 3100000012716 | Y45: 0
A46: 40 | X46: 3100000012816 | Y46: 0
A47: 41 | X47: 3100000012916 | Y47: 0
A48: 42 | X48: 3100000013016 | Y48: 0
A49: 43 | X49: 3100000013116 | Y49: 0
A50: 44 | X50: 3100000013216 | Y50: 0
A51: 45 | X51: 3100000013516 | Y51: 0
A52: 46 | X52: 3100000013616 | Y52: 0
A53: 47 | X53: 3100000013716 | Y53: 0
A54: 48 | X54: 3100000013816 | Y54: 0
A55: 49 | X55: 3100000014616 | Y55: 0
A56: 50 | X56: 3100000015016 | Y56: 0
A57: 51 | X57: 3100000016316 | Y57: 0
A58: 52 | X58: 3100000016416 | Y58: 0
A59: 53 | X59: 3100000017416 | Y59: 0
A60: 54 | X60: 3100000017516 | Y60: 0
A61: 55 | X61: 3100000017616 | Y61: 0
A62: 56 | X62: 3100000017816 | Y62: 0
A63: 57 | X63: 3100000018016 | Y63: 0
A64: 58 | X64: 3100000018116 | Y64: 0
A65: 59 | X65: 3100000018216 | Y65: 0
A66: 60 | X66: 3100000018416 | Y66: 0
A67: 61 | X67: 3100000018516 | Y67: 0
A68: 62 | X68: 3100000018616 | Y68: 0
A69: 63 | X69: 3100000018716 | Y69: 0
A70: 64 | X70: 3100000018916 | Y70: 0
A71: 65 | X71: 3100000019116 | Y71: 0
A72: 66 | X72: 3100000019216 | Y72: 0
A73: =SUM(A72+1) -> 67 | X73: 3100000019316 | Y73: 0
A74: 68 | X74: 3100000019416 | Y74: 0
A75: 69 | X75: 3100000019716 | Y75: 0
A76: 70 | X76: 3100000020216 | Y76: 0
A77: 71 | X77: 3100000020316 | Y77: 0
A78: 72 | X78: 3100000020416 | Y78: 0
A79: 73 | X79: 3100000020516 | Y79: 0
A80: 74 | X80: 3100000020616 | Y80: 0
A81: 75 | X81: 3100000020716 | Y81: 0
A82: 76 | X82: 3100000020816 | Y82: 0
A83: 77 | X83: 3100000020916 | Y83: 0
A84: 78 | X84: 3100000021016 | Y84: 0
A85: 79 | X85: 3100000021116 | Y85: 0
A86: 80 | X86: 3100000021216 | Y86: 0
A87: 81 | X87: 3100000021316 | Y87: 0
A88: 82 | X88: 3100000021416 | Y88: 0
A89: 83 | X89: 3100000021516 | Y89: 0
A90: 84 | X90: 3100000024416 | Y90: 0
A91: 85 | X91: 3100000024516 | Y91: 0
A92: 86 | X92: 3100000024616 | Y92: 0
A93: 87 | X93: 3100000024816 | Y93: 0
A94: 88 | X94: 3100000025216 | Y94: 0
A95: 89 | X95: 3100000025416 | Y95: 0
A96: 90 | X96: 3100000025516 | Y96: 0
A97: 91 | X97: 3100000025716 | Y97: 0
A98: 92 | X98: 3100000025816 | Y98: 0
A99: 93 | X99: 3100000026216 | Y99: 0
A100: 94 | X100: 3100000026316 | Y100: 0
A101: 95 | X101: 3100000026916 | Y101: 0
A102: 96 | X102: 3100000027016 | Y102: 0
A103: 97 | X103: 3100000027216 | Y103: 0
A104: 98 | X104: 3100000027816 | Y104: 0
A105: 99 | X105: 3100000027916 | Y105: 0
A106: 100 | X106: 3100000028316 | Y106: 0
A107: 101 | X107: 3100000028916 | Y107: 0
A108: 102 | X108: 3100000029216 | Y108: 0
A109: 103 | X109: 3100000029516 | Y109: 0
A110: 104 | X110: 3100000029616 | Y110: 0
A111: 105 | X111: 3100000029816 | Y111: 0
A112: 106 | X112: 3100000030316 | Y112: 0
A113: 107 | X113: 3100000030516 | Y113: 0
A114: 108 | X114: 3100000031016 | Y114: 0
A115: 109 | X115: 3100000031216 | Y115: 0
A116: 110 | X116: 3100000031316 | Y116: 0
A117: 111 | X117: 3100000031416 | Y117: 0
A118: 112 | X118: 3100000031516 | Y118: 0
A119: 113 | X119: 3100000031716 | Y119: 0
A120: 114 | X120: 3100000031816 | Y120: 0
A121: 115 | X121: 3100000032116 | Y121: 2
A122: 116 | X122: 3100000032216 | Y122: 0
A123: 117 | X123: 3100000032316 | Y123: 0
A124: 118 | X124: 3100000032416 | Y124: 0
A125: 119 | X125: 3100000032516 | Y125: 0
A126: 120 | X126: 3100000032616 | Y126: 0
A127: 121 | X127: 3100000033316 | Y127: 0
A128: 122 | X128: 3100000033416 | Y128: 0
A129: 123 | X129: 3100000034416 | Y129: 0
A130: 124 | X130: 3100000034516 | Y130: 0
A131: 125 | X131: 3100000034916 | Y131: 1
A132: 126 | X132: 3100000035116 | Y132: 0
A133: 127 | X133: 3100000035716 | Y133: 0
A134: 128 | X134: 3100000037216 | Y134: 0
A135: 129 | X135: 3100000037416 | Y135: 0
A136: =SUM(A135+1) -> 130 | X136: 3100000037516 | Y136: 1
A137: =SUM(A136+1) -> 131 | X137: 3100000037816 | Y137: 0
A138: =SUM(A137+1) -> 132 | X138: 3100000037916 | Y138: 0
A139: 133 | X139: 3100000038516 | Y139: 0
A140: 134 | X140: 3100000038616 | Y140: 0
A141: 135 | X141: 3100000038716 | Y141: 4
A142: 136 | X142: 3100000038916 | Y142: 0
A143: 137 | X143: 3100000039116 | Y143: 0
A144: 138 | X144: 3100000039416 | Y144: 0
A145: 139 | X145: 3100000039516 | Y145: 0
A146: 140 | X146: 3100000039616 | Y146: 0
A147: 141 | X147: 3100000039816 | Y147: 0
A148: 142 | X148: 3100000039916 | Y148: 0
A149: 143 | X149: 3100000040016 | Y149: 0
A150: 144 | X150: 3100000040116 | Y150: 0
A151: 145 | X151: 3100000040216 | Y151: 0
A152: =SUM(A151+1) -> 146 | X152: 3100000040316 | Y152: 0
A153: =SUM(A152+1) -> 147 | X153: 3100000040416 | Y153: 0
A154: =SUM(A153+1) -> 148 | X154: 3100000040716 | Y154: 0
A155: 149 | X155: 3100000040816 | Y155: 0
A156: 150 | X156: 3100000041016 | Y156: 0
A157: 151 | X157: 3100000041516 | Y157: 0
A158: 152 | X158: 3100000041616 | Y158: 0
A159: 153 | X159: 3100000041716 | Y159: 0
A160: 154 | X160: 3100000041816 | Y160: 0
A161: 155 | X161: 3100000041916 | Y161: 0
A162: 156 | X162: 3100000042016 | Y162: 0
A163: 157 | X163: 3100000042216 | Y163: 0
A164: 158 | X164: 3100000042316 | Y164: 0
A165: 159 | X165: 3100000042416 | Y165: 0
A166: 160 | X166: 3100000042516 | Y166: 0
A167: 161 | X167: 3100000042916 | Y167: 0
A168: 162 | X168: 3100000043016 | Y168: 0
A169: 163 | X169: 3100000043116 | Y169: 0
A170: 164 | X170: ´3100000043316 | Y170: 0
A171: 165 | X171: 3100000044516 | Y171: 0
A172: 166 | X172: 3100000044616 | Y172: 0
A173: 167 | X173: 3100000044716 | Y173: 0
A174: 168 | X174: 3100000044816 | Y174: 0
A175: 169 | X175: 3100000044916 | Y175: 0
A176: 170 | X176: 3100000046116 | Y176: 0
A177: 171 | X177: 3100000046316 | Y177: 0
A178: 172 | X178: 3100000046516 | Y178: 0
A179: 173 | X179: 3100000047016 | Y179: 0
A180: 174 | X180: 3100000047216 | Y180: 0
A181: 175 | X181: 3100000047316 | Y181: 0
A182: 176 | X182: 3100000047716 | Y182: 0
A183: 177 | X183: 3100000048016 | Y183: 0
A184: 178 | X184: 3100000049316 | Y184: 0
A185: 179 | X185: 3100000049516 | Y185: 0
A186: 180 | X186: 3100000049616 | Y186: 0
A187: 181 | X187: 3100000050116 | Y187: 0
A188: 182 | X188: 3100000050316 | Y188: 0
A189: 183 | X189: 3100000050416 | Y189: 0
A190: 184 | X190: 3100000050716 | Y190: 0
A191: 185 | X191: 3100000050816 | Y191: 0
A192: 186 | X192: 3100000050916 | Y192: 0
A193: 187 | X193: 3100000051116 | Y193: 0
A194: 188 | X194: 3100000051316 | Y194: 0
A195: 189 | X195: 3100000051516 | Y195: 1
A196: 190 | X196: 3100000051716 | Y196: 0
A197: 191 | X197: 3100000051916 | Y197: 0
A198: 192 | X198: 3100000052016 | Y198: 0
A199: 193 | X199: 3100000052616 | Y199: 0
A200: 194 | X200: 3100000052716 | Y200: 0
A201: 195 | X201: 3100000053016 | Y201: 0
... 89 more rows

Sheet 5 DÍAS (2 o más UA) (hidden)
B7: ATENCIÓN A SOLICITUDES DE INFORMACIÓN, INFODF A MARZO 2014
B8: ATENDIDAS POR "DOS O MÁS UNIDADES ADMINISTRATIVAS" (5 DÍAS HÁBILES)
B9: Folio | C9: Secretaría Técnica | D9: Secretaría Ejecutiva | E9: Contraloría | F9: Dirección Jurídica y Desarrollo Normativo | G9: Dirección de Capacitación y Cultura de la Transparencia | H9: Dirección de Evaluación y Estudios | I9: Dirección de Datos Personales | J9: Dirección de Vinculación con la Sociedad | K9: Dirección de Tecnologías de Información | L9: Dirección de Administración y Finanzas | M9: Dirección de Comunicación Social | N9: Oficina de Información Pública
C10: Días | D10: Días | E10: Días | F10: Días | G10: Días | H10: Días | I10: Días | J10: Días | K10: Días | L10: Días | M10: Días | N10: Días

Sheet 5 DIAS (2 o más UA)
C1: FOLIOS PENDIENTES A LA FECHA DE REPORTE
B3: TIEMPO DE ATENCIÓN A SOLICITUDES DE INFORMACIÓN, FOLIOS AL 04 DE MAYO DE 2016
B4: SIP DE 5 DÍAS ATENDIDAS POR 2 o MÁS UA
B5: Folio | C5: Secretaría Técnica | D5: Secretaría Ejecutiva | E5: Contraloría | F5: Dirección Jurídica y Desarrollo Normativo | G5: Dirección de Capacitación y Cultura de la Transparencia | H5: Dirección de Evaluación y Estudios | I5: Dirección de Datos Personales | J5: Dirección de Vinculación con la Sociedad | K5: Dirección de Tecnologías de Información | L5: Dirección de Administración y Finanzas | M5: Dirección de Comunicación Social | N5: Oficina de Información Pública
C6: Días | D6: Días | E6: Días | F6: Días | G6: Días | H6: Días | I6: Días | J6: Días | K6: Días | L6: Días | M6: Días | N6: Días
A7: 1 | B7: 3100000015716 | E7: 3 | L7: 5
A8: 2 | B8: 3100000021716 | E8: 4 | F8: 5
A9: 3 | B9: 3100000023416 | D9: 5 | I9: 5 | L9: 5
A10: 4 | B10: 3100000023516 | C10: 5 | E10: 4 | F10: 5 | G10: 2 | J10: 2
A11: 5 | B11: 3100000023716 | G11: 2 | L11: 5 | M11: 2
A12: 6 | B12: 3100000048716 | C12: 5 | D12: 5 | E12: 4 | F12: 5 | G12: 5 | H12: 5 | I12: 5 | J12: 5 | K12: 4 | L12: 4 | M12: 5
A13: 7
A14: 8
A15: 9
A16: 10
B17: PROMEDIO | C17: =AVERAGE(C7:C16) -> 5 | D17: 5 | E17: 3.75 | F17: 5 | G17: 3 | H17: 5 | I17: 5 | J17: 3.5 | K17: 4 | L17: 4.75 | M17: 3.5
B18: =COUNT(B7:B14) -> 6

Sheet RESUMEN POR UA (hidden)
A1: TIEMPO DE ATENCIÓN A SOLICITUDES DE INFORMACIÓN POR UNIDAD ADMINISTRATIVA, FOLIOS AL 15 DE JUNIO DE 2015
A2: Unidad Administrativa | B2: SIP de 10 días atendidas por una UA | D2: SIP de 20 días atendidas por una UA | F2: SIP de 10 días atendidas por dos o más UA | H2: SIP de 20 días atendidas por dos o más UA | J2: Solicitudes Acceso Restringido | L2: SIP de 5 días atendidas por 1 UA | N2: SIP de 5 días atendidas por 2 o más UA
B3: Folios | C3: Promedio días atención | D3: Folios | E3: Promedio días atención | F3: Folios | G3: Promedio días atención | H3: Folios | I3: Promedio días atención | J3: Folios | K3: Promedio días atención | L3: Folios | M3: Promedio días atención | N3: Folios | O3: Promedio días atención
A4: Secretaría Técnica | B4: =COUNT('10 DÍAS (1 UA)'!C11:C93) -> 7 | C4: ='10 DÍAS (1 UA)'!C122 -> 7.285714286 | D4: =COUNT('20 DÍAS (1 UA)'!C9:C20) -> 0 | F4: =COUNT('10 DÍAS (2 o más UA)'!C7:C35) -> 11 | G4: ='10 DÍAS (2 o más UA)'!C58 -> 0 | H4: =COUNTIF('20 DÍAS (2 o más UA)'!C7:C8, ">10") -> 1 | I4: ='20 DÍAS (2 o más UA)'!C34 -> 13 | J4: =CountCcolor('Solicitudes Acceso restringido'!$B$2,'Solicitudes Acceso restringido'!C9:C18) -> 0 | L4: =COUNT('5 DÍAS (1 UA)'!C7:C106) -> 0 | M4: ='5 DÍAS (1 UA)'!C290 ->  | N4: =COUNT('5 DIAS (2 o más UA)'!C7:C16) -> 2 | O4: ='5 DIAS (2 o más UA)'!C17 -> 5
A5: Secretaría Ejecutiva | B5: =COUNT('10 DÍAS (1 UA)'!E11:E93) -> 16 | C5: ='10 DÍAS (1 UA)'!E122 -> 8.75 | D5: =COUNT('20 DÍAS (1 UA)'!E9:E20) -> 1 | F5: =COUNT('10 DÍAS (2 o más UA)'!D7:D35) -> 2 | G5: ='10 DÍAS (2 o más UA)'!D58 -> 0 | H5: =COUNTIF('20 DÍAS (2 o más UA)'!D7:D8, ">10") -> 0 | I5: ='20 DÍAS (2 o más UA)'!D34 ->  | J5: =CountCcolor('Solicitudes Acceso restringido'!$B$2,'Solicitudes Acceso restringido'!D9:D18) -> 0 | L5: =COUNT('5 DÍAS (1 UA)'!E7:E106) -> 2 | M5: ='5 DÍAS (1 UA)'!E290 -> 5 | N5: =COUNT('5 DIAS (2 o más UA)'!D7:D16) -> 2 | O5: ='5 DIAS (2 o más UA)'!D17 -> 5
A6: Contraloría | B6: =COUNT('10 DÍAS (1 UA)'!G11:G93) -> 6 | C6: ='10 DÍAS (1 UA)'!G122 -> 4.833333333 | D6: =COUNT('20 DÍAS (1 UA)'!G9:G20) -> 0 | F6: =COUNT('10 DÍAS (2 o más UA)'!E7:E35) -> 2 | G6: ='10 DÍAS (2 o más UA)'!E58 -> 3 | H6: =COUNTIF('20 DÍAS (2 o más UA)'!E7:E8, ">10") -> 0 | J6: =CountCcolor('Solicitudes Acceso restringido'!$B$2,'Solicitudes Acceso restringido'!E9:E18) -> 0 | K6: ='Solicitudes Acceso restringido'!E19 ->  | L6: =COUNT('5 DÍAS (1 UA)'!G7:G106) -> 1 | M6: ='5 DÍAS (1 UA)'!G290 -> 4 | N6: =COUNT('5 DIAS (2 o más UA)'!E7:E16) -> 4 | O6: ='5 DIAS (2 o más UA)'!E17 -> 3.75
A7: DJDN | B7: =COUNT('10 DÍAS (1 UA)'!I11:I93) -> 60 | C7: ='10 DÍAS (1 UA)'!I122 -> 9.25 | D7: =COUNT('20 DÍAS (1 UA)'!I9:I20) -> 5 | E7: ='20 DÍAS (1 UA)'!I21 -> 18.4 | F7: =COUNT('10 DÍAS (2 o más UA)'!F7:F35) -> 12 | G7: ='10 DÍAS (2 o más UA)'!F58 -> 10 | H7: =COUNTIF('20 DÍAS (2 o más UA)'!F7:F8, ">10") -> 0 | I7: ='20 DÍAS (2 o más UA)'!F34 -> 20 | J7: =CountCcolor('Solicitudes Acceso restringido'!$B$2,'Solicitudes Acceso restringido'!F9:F18) -> 0 | K7: ='Solicitudes Acceso restringido'!F19 ->  | L7: =COUNT('5 DÍAS (1 UA)'!I7:I106) -> 3 | M7: ='5 DÍAS (1 UA)'!I290 -> 5 | N7: =COUNT('5 DIAS (2 o más UA)'!F7:F16) -> 3 | O7: ='5 DIAS (2 o más UA)'!F17 -> 5
A8: DCCT | B8: =COUNT('10 DÍAS (1 UA)'!K11:K92) -> 6 | C8: ='10 DÍAS (1 UA)'!K122 -> 4.833333333 | D8: =COUNT('20 DÍAS (1 UA)'!K9:K20) -> 0 | F8: =COUNT('10 DÍAS (2 o más UA)'!G7:G35) -> 7 | G8: ='10 DÍAS (2 o más UA)'!G58 -> 0 | H8: =COUNTIF('20 DÍAS (2 o más UA)'!G7:G8, ">10") -> 0 | J8: =CountCcolor('Solicitudes Acceso restringido'!$B$2,'Solicitudes Acceso restringido'!G9:G18) -> 0 | K8: ='Solicitudes Acceso restringido'!G19 ->  | L8: =COUNT('5 DÍAS (1 UA)'!K7:K106) -> 0 | M8: ='5 DÍAS (1 UA)'!K290 ->  | N8: =COUNT('5 DIAS (2 o más UA)'!G7:G16) -> 3 | O8: ='5 DIAS (2 o más UA)'!G17 -> 3
A9: DEyE | B9: =COUNT('10 DÍAS (1 UA)'!M11:M92) -> 40 | C9: ='10 DÍAS (1 UA)'!M122 -> 5.775 | D9: =COUNT('20 DÍAS (1 UA)'!M9:M20) -> 3 | E9: ='20 DÍAS (1 UA)'!M21 -> 13.33333333 | F9: =COUNT('10 DÍAS (2 o más UA)'!H7:H35) -> 7 | G9: ='10 DÍAS (2 o más UA)'!H58 -> 10 | H9: =COUNTIF('20 DÍAS (2 o más UA)'!H7:H8, ">10") -> 0 | I9: ='20 DÍAS (2 o más UA)'!H34 -> 11 | J9: =CountCcolor('Solicitudes Acceso restringido'!$B$2,'Solicitudes Acceso restringido'!H9:H18) -> 0 | L9: =COUNT('5 DÍAS (1 UA)'!M7:M106) -> 0 | M9: ='5 DÍAS (1 UA)'!M290 ->  | N9: =COUNT('5 DIAS (2 o más UA)'!H7:H16) -> 1 | O9: ='5 DIAS (2 o más UA)'!H17 -> 5
A10: DDP | B10: =COUNT('10 DÍAS (1 UA)'!O11:O92) -> 3 | C10: ='10 DÍAS (1 UA)'!O122 -> 7.333333333 | D10: =COUNT('20 DÍAS (1 UA)'!O9:O20) -> 8 | F10: =COUNT('10 DÍAS (2 o más UA)'!I7:I35) -> 2 | G10: ='10 DÍAS (2 o más UA)'!I58 -> 0 | H10: =COUNTIF('20 DÍAS (2 o más UA)'!I7:I8, ">10") -> 1 | J10: =CountCcolor('Solicitudes Acceso restringido'!$B$2,'Solicitudes Acceso restringido'!I9:I18) -> 0 | L10: =COUNT('5 DÍAS (1 UA)'!O7:O106) -> 0 | N10: =COUNT('5 DIAS (2 o más UA)'!I7:I16) -> 2 | O10: ='5 DIAS (2 o más UA)'!I17 -> 5
A11: DVS | B11: =COUNT('10 DÍAS (1 UA)'!Q11:Q93) -> 5 | C11: ='10 DÍAS (1 UA)'!Q122 -> 5.4 | D11: =COUNT('20 DÍAS (1 UA)'!Q9:Q20) -> 0 | F11: =COUNT('10 DÍAS (2 o más UA)'!J7:J35) -> 4 | G11: ='10 DÍAS (2 o más UA)'!J58 -> 0 | H11: =COUNTIF('20 DÍAS (2 o más UA)'!J7:J8, ">10") -> 0 | J11: =CountCcolor('Solicitudes Acceso restringido'!$B$2,'Solicitudes Acceso restringido'!J9:J18) -> 0 | K11: ='Solicitudes Acceso restringido'!J19 ->  | L11: =COUNT('5 DÍAS (1 UA)'!Q7:Q106) -> 1 | M11: ='5 DÍAS (1 UA)'!Q290 -> 3 | N11: =COUNT('5 DIAS (2 o más UA)'!J7:J16) -> 2 | O11: ='5 DIAS (2 o más UA)'!J17 -> 3.5
A12: DTI | B12: =COUNT('10 DÍAS (1 UA)'!S11:S93) -> 11 | C12: ='10 DÍAS (1 UA)'!S122 -> 3.454545455 | D12: =COUNT('20 DÍAS (1 UA)'!S9:S20) -> 0 | E12: ='20 DÍAS (1 UA)'!S21 ->  | F12: =COUNT('10 DÍAS (2 o más UA)'!K7:K35) -> 6 | G12: ='10 DÍAS (2 o más UA)'!K58 -> 0 | H12: =COUNTIF('20 DÍAS (2 o más UA)'!K7:K8, ">10") -> 0 | I12: ='20 DÍAS (2 o más UA)'!K34 ->  | J12: =CountCcolor('Solicitudes Acceso restringido'!$B$2,'Solicitudes Acceso restringido'!K9:K18) -> 0 | L12: =COUNT('5 DÍAS (1 UA)'!S7:S106) -> 0 | N12: =COUNT('5 DIAS (2 o más UA)'!K7:K16) -> 1
A13: DAF | B13: =COUNT('10 DÍAS (1 UA)'!U11:U91) -> 43 | C13: ='10 DÍAS (1 UA)'!U122 -> 7.76744186 | D13: =COUNT('20 DÍAS (1 UA)'!U9:U20) -> 5 | F13: =COUNT('10 DÍAS (2 o más UA)'!L7:L35) -> 9 | G13: ='10 DÍAS (2 o más UA)'!L58 -> 10 | H13: =COUNTIF('20 DÍAS (2 o más UA)'!L7:L8, ">10") -> 0 | I13: ='20 DÍAS (2 o más UA)'!L34 -> 18 | J13: =CountCcolor('Solicitudes Acceso restringido'!$B$2,'Solicitudes Acceso restringido'!L9:L18) -> 1 | K13: ='Solicitudes Acceso restringido'!L19 -> 9 | L13: =COUNT('5 DÍAS (1 UA)'!U7:U106) -> 34 | M13: ='5 DÍAS (1 UA)'!U290 -> 4.676470588 | N13: =COUNT('5 DIAS (2 o más UA)'!L7:L16) -> 4 | O13: ='5 DIAS (2 o más UA)'!L17 -> 4.75
A14: DCS | B14: =COUNT('10 DÍAS (1 UA)'!W11:W93) -> 4 | C14: ='10 DÍAS (1 UA)'!W122 -> 4 | D14: =COUNT('20 DÍAS (1 UA)'!W9:W20) -> 0 | F14: =COUNT('10 DÍAS (2 o más UA)'!M7:M35) -> 0 | H14: =COUNTIF('20 DÍAS (2 o más UA)'!M7:M8, ">10") -> 0 | J14: =CountCcolor('Solicitudes Acceso restringido'!$B$2,'Solicitudes Acceso restringido'!M9:M18) -> 0 | L14: =COUNT('5 DÍAS (1 UA)'!W7:W106) -> 0 | N14: =COUNT('5 DIAS (2 o más UA)'!M7:M16) -> 2 | O14: ='5 DIAS (2 o más UA)'!M17 -> 3.5
A15: OIP | B15: =COUNT('10 DÍAS (1 UA)'!Y11:Y90) -> 9 | C15: ='10 DÍAS (1 UA)'!Y122 -> 3.333333333 | D15: =COUNT('20 DÍAS (1 UA)'!Y9:Y20) -> 0 | F15: =COUNT('10 DÍAS (2 o más UA)'!N7:N35) -> 5 | G15: ='10 DÍAS (2 o más UA)'!N58 -> 0 | H15: =COUNTIF('20 DÍAS (2 o más UA)'!N7:N8, ">10") -> 0 | J15: =CountCcolor('Solicitudes Acceso restringido'!$B$2,'Solicitudes Acceso restringido'!N9:N18) -> 0 | L15: =COUNT('5 DÍAS (1 UA)'!Y7:Y106) -> 100 | M15: ='5 DÍAS (1 UA)'!Y290 -> 0.06028368794 | N15: =COUNT('5 DIAS (2 o más UA)'!N7:N16) -> 0 | O15: ='5 DIAS (2 o más UA)'!N17 -> 
B17: FOLIOS PENDIENTES A LA FECHA DE REPORTE

Sheet TABLAS
A1: Unidad Administrativa | B1: SIP de 10 días atendidas por una UA | D1: SIP de 20 días atendidas por una UA | F1: SIP de 10 días atendidas por dos o más UA | H1: SIP de 20 días atendidas por dos o más UA | J1: Solicitudes Acceso Restringido | L1: SIP de 5 días atendidas por 1 UA | N1: SIP de 5 días atendidas por 2 o más UA
B2: Folios | C2: Promedio días atención | D2: Folios | E2: Promedio días atención | F2: Folios | G2: Promedio días atención | H2: Folios | I2: Promedio días atención | J2: Folios | K2: Promedio días atención | L2: Folios | M2: Promedio días atención | N2: Folios | O2: Promedio días atención
A3: Secretaría Técnica | B3: =COUNT('10 DÍAS (1 UA)'!C11:C120) -> 7 | C3: ='10 DÍAS (1 UA)'!C122 -> 7.285714286 | D3: =COUNT('20 DÍAS (1 UA)'!C9:C20) -> 0 | F3: =COUNT('10 DÍAS (2 o más UA)'!C7:C100) -> 22 | G3: ='10 DÍAS (2 o más UA)'!C102 -> 7.045454545 | H3: =COUNTIF('20 DÍAS (2 o más UA)'!C7:C22, ">10") -> 1 | I3: ='20 DÍAS (2 o más UA)'!C34 -> 13 | J3: =CountCcolor('Solicitudes Acceso restringido'!$B$2,'Solicitudes Acceso restringido'!C9:C18) -> 0 | L3: =COUNT('5 DÍAS (1 UA)'!C7:C289) -> 0 | N3: =COUNT('5 DIAS (2 o más UA)'!C7:C16) -> 2 | O3: ='5 DIAS (2 o más UA)'!C17 -> 5 | P3: =SUM(B3+D3+F3+H3+J3+L3+N3) -> 32
A4: Secretaría Ejecutiva | B4: =COUNT('10 DÍAS (1 UA)'!E11:E120) -> 16 | C4: ='10 DÍAS (1 UA)'!E122 -> 8.75 | D4: =COUNT('20 DÍAS (1 UA)'!E9:E20) -> 1 | E4: ='20 DÍAS (1 UA)'!E21 -> 20 | F4: =COUNT('10 DÍAS (2 o más UA)'!D7:D100) -> 27 | G4: ='10 DÍAS (2 o más UA)'!D102 -> 7.148148148 | H4: =COUNTIF('20 DÍAS (2 o más UA)'!D7:D22, ">10") -> 0 | J4: =CountCcolor('Solicitudes Acceso restringido'!$B$2,'Solicitudes Acceso restringido'!D9:D18) -> 0 | L4: =COUNT('5 DÍAS (1 UA)'!E7:E289) -> 2 | M4: ='5 DÍAS (1 UA)'!E290 -> 5 | N4: =COUNT('5 DIAS (2 o más UA)'!D7:D16) -> 2 | O4: ='5 DIAS (2 o más UA)'!D17 -> 5 | P4: 48
A5: Contraloría | B5: =COUNT('10 DÍAS (1 UA)'!G11:G120) -> 6 | C5: ='10 DÍAS (1 UA)'!G122 -> 4.833333333 | D5: =COUNT('20 DÍAS (1 UA)'!G9:G20) -> 0 | F5: =COUNT('10 DÍAS (2 o más UA)'!E7:E100) -> 18 | G5: ='10 DÍAS (2 o más UA)'!E102 -> 5.055555556 | H5: =COUNTIF('20 DÍAS (2 o más UA)'!E7:E22, ">10") -> 0 | J5: =CountCcolor('Solicitudes Acceso restringido'!$B$2,'Solicitudes Acceso restringido'!E9:E18) -> 0 | L5: =COUNT('5 DÍAS (1 UA)'!G7:G289) -> 1 | M5: ='5 DÍAS (1 UA)'!G290 -> 4 | N5: =COUNT('5 DIAS (2 o más UA)'!E7:E16) -> 4 | O5: ='5 DIAS (2 o más UA)'!E17 -> 3.75 | P5: 29
A6: DJDN | B6: =COUNT('10 DÍAS (1 UA)'!I11:I120) -> 60 | C6: ='10 DÍAS (1 UA)'!I122 -> 9.25 | D6: =COUNT('20 DÍAS (1 UA)'!I9:I20) -> 5 | E6: ='20 DÍAS (1 UA)'!I21 -> 18.4 | F6: =COUNT('10 DÍAS (2 o más UA)'!F7:F100) -> 40 | G6: ='10 DÍAS (2 o más UA)'!F102 -> 9.05 | H6: =COUNTIF('20 DÍAS (2 o más UA)'!F7:F22, ">10") -> 3 | I6: ='20 DÍAS (2 o más UA)'!F34 -> 20 | J6: =CountCcolor('Solicitudes Acceso restringido'!$B$2,'Solicitudes Acceso restringido'!F9:F18) -> 0 | L6: =COUNT('5 DÍAS (1 UA)'!I7:I289) -> 3 | M6: ='5 DÍAS (1 UA)'!I290 -> 5 | N6: =COUNT('5 DIAS (2 o más UA)'!F7:F16) -> 3 | O6: ='5 DIAS (2 o más UA)'!F17 -> 5 | P6: 114
A7: DCCT | B7: =COUNT('10 DÍAS (1 UA)'!K11:K120) -> 6 | C7: ='10 DÍAS (1 UA)'!K122 -> 4.833333333 | D7: =COUNT('20 DÍAS (1 UA)'!K9:K20) -> 0 | F7: =COUNT('10 DÍAS (2 o más UA)'!G7:G100) -> 34 | G7: ='10 DÍAS (2 o más UA)'!G102 -> 5.147058824 | H7: =COUNTIF('20 DÍAS (2 o más UA)'!G7:G22, ">10") -> 0 | J7: =CountCcolor('Solicitudes Acceso restringido'!$B$2,'Solicitudes Acceso restringido'!G9:G18) -> 0 | L7: =COUNT('5 DÍAS (1 UA)'!K7:K289) -> 0 | N7: =COUNT('5 DIAS (2 o más UA)'!G7:G16) -> 3 | O7: ='5 DIAS (2 o más UA)'!G17 -> 3 | P7: 43
A8: DEyE | B8: =COUNT('10 DÍAS (1 UA)'!M11:M120) -> 40 | C8: ='10 DÍAS (1 UA)'!M122 -> 5.775 | D8: =COUNT('20 DÍAS (1 UA)'!M9:M20) -> 3 | E8: ='20 DÍAS (1 UA)'!M21 -> 13.33333333 | F8: =COUNT('10 DÍAS (2 o más UA)'!H7:H100) -> 24 | G8: ='10 DÍAS (2 o más UA)'!H102 -> 7.541666667 | H8: =COUNTIF('20 DÍAS (2 o más UA)'!H7:H22, ">10") -> 1 | I8: ='20 DÍAS (2 o más UA)'!H34 -> 11 | J8: =CountCcolor('Solicitudes Acceso restringido'!$B$2,'Solicitudes Acceso restringido'!H9:H18) -> 0 | L8: =COUNT('5 DÍAS (1 UA)'!M7:M289) -> 0 | N8: =COUNT('5 DIAS (2 o más UA)'!H7:H16) -> 1 | O8: ='5 DIAS (2 o más UA)'!H17 -> 5 | P8: 69
A9: DDP | B9: =COUNT('10 DÍAS (1 UA)'!O11:O120) -> 3 | C9: ='10 DÍAS (1 UA)'!O122 -> 7.333333333 | D9: =COUNT('20 DÍAS (1 UA)'!O9:O20) -> 8 | E9: ='20 DÍAS (1 UA)'!O21 -> 17.625 | F9: =COUNT('10 DÍAS (2 o más UA)'!I7:I100) -> 12 | G9: ='10 DÍAS (2 o más UA)'!I102 -> 7.083333333 | H9: =COUNTIF('20 DÍAS (2 o más UA)'!I7:I20, ">10") -> 1 | I9: ='20 DÍAS (2 o más UA)'!I34 -> 20 | J9: =CountCcolor('Solicitudes Acceso restringido'!$B$2,'Solicitudes Acceso restringido'!I9:I18) -> 0 | L9: =COUNT('5 DÍAS (1 UA)'!O7:O289) -> 0 | N9: =COUNT('5 DIAS (2 o más UA)'!I7:I16) -> 2 | O9: ='5 DIAS (2 o más UA)'!I17 -> 5 | P9: 26
A10: DVS | B10: =COUNT('10 DÍAS (1 UA)'!Q11:Q120) -> 5 | C10: ='10 DÍAS (1 UA)'!Q122 -> 5.4 | D10: =COUNT('20 DÍAS (1 UA)'!Q9:Q20) -> 0 | F10: =COUNT('10 DÍAS (2 o más UA)'!J7:J100) -> 24 | G10: ='10 DÍAS (2 o más UA)'!J102 -> 6.875 | H10: =COUNTIF('20 DÍAS (2 o más UA)'!J7:J22, ">10") -> 0 | J10: =CountCcolor('Solicitudes Acceso restringido'!$B$2,'Solicitudes Acceso restringido'!J9:J18) -> 0 | L10: =COUNT('5 DÍAS (1 UA)'!Q7:Q289) -> 1 | M10: ='5 DÍAS (1 UA)'!Q290 -> 3 | N10: =COUNT('5 DIAS (2 o más UA)'!J7:J16) -> 2 | O10: ='5 DIAS (2 o más UA)'!J17 -> 3.5 | P10: 32
A11: DTI | B11: =COUNT('10 DÍAS (1 UA)'!S11:S120) -> 11 | C11: ='10 DÍAS (1 UA)'!S122 -> 3.454545455 | D11: =COUNT('20 DÍAS (1 UA)'!S9:S20) -> 0 | F11: =COUNT('10 DÍAS (2 o más UA)'!K7:K100) -> 20 | G11: ='10 DÍAS (2 o más UA)'!K102 -> 5.5 | H11: =COUNTIF('20 DÍAS (2 o más UA)'!K7:K22, ">10") -> 0 | J11: =CountCcolor('Solicitudes Acceso restringido'!$B$2,'Solicitudes Acceso restringido'!K9:K18) -> 0 | L11: =COUNT('5 DÍAS (1 UA)'!S7:S289) -> 0 | N11: =COUNT('5 DIAS (2 o más UA)'!K7:K16) -> 1 | O11: ='5 DIAS (2 o más UA)'!K17 -> 4 | P11: 32
A12: DAF | B12: =COUNT('10 DÍAS (1 UA)'!U11:U120) -> 43 | C12: ='10 DÍAS (1 UA)'!U122 -> 7.76744186 | D12: =COUNT('20 DÍAS (1 UA)'!U9:U20) -> 5 | E12: ='20 DÍAS (1 UA)'!U21 -> 14.2 | F12: =COUNT('10 DÍAS (2 o más UA)'!L7:L100) -> 42 | G12: ='10 DÍAS (2 o más UA)'!L102 -> 7.738095238 | H12: =COUNTIF('20 DÍAS (2 o más UA)'!L7:L22, ">10") -> 8 | I12: ='20 DÍAS (2 o más UA)'!L34 -> 18 | J12: =CountCcolor('Solicitudes Acceso restringido'!$B$2,'Solicitudes Acceso restringido'!L9:L18) -> 1 | K12: ='Solicitudes Acceso restringido'!L19 -> 9 | L12: =COUNT('5 DÍAS (1 UA)'!U7:U289) -> 34 | M12: ='5 DÍAS (1 UA)'!U290 -> 4.676470588 | N12: =COUNT('5 DIAS (2 o más UA)'!L7:L16) -> 4 | O12: ='5 DIAS (2 o más UA)'!L17 -> 4.75 | P12: 137
A13: DCS | B13: =COUNT('10 DÍAS (1 UA)'!W11:W120) -> 4 | C13: ='10 DÍAS (1 UA)'!W122 -> 4 | D13: =COUNT('20 DÍAS (1 UA)'!W9:W20) -> 0 | F13: =COUNT('10 DÍAS (2 o más UA)'!M7:M100) -> 10 | G13: ='10 DÍAS (2 o más UA)'!M102 -> 6.5 | H13: =COUNTIF('20 DÍAS (2 o más UA)'!M7:M8, ">10") -> 0 | J13: =CountCcolor('Solicitudes Acceso restringido'!$B$2,'Solicitudes Acceso restringido'!M9:M18) -> 0 | L13: =COUNT('5 DÍAS (1 UA)'!W7:W289) -> 0 | N13: =COUNT('5 DIAS (2 o más UA)'!M7:M16) -> 2 | O13: ='5 DIAS (2 o más UA)'!M17 -> 3.5 | P13: 16
A14: OIP | B14: =COUNT('10 DÍAS (1 UA)'!Y11:Y120) -> 9 | C14: ='10 DÍAS (1 UA)'!Y122 -> 3.333333333 | D14: =COUNT('20 DÍAS (1 UA)'!Y9:Y20) -> 0 | F14: =COUNT('10 DÍAS (2 o más UA)'!N7:N100) -> 9 | G14: ='10 DÍAS (2 o más UA)'!N102 -> 0.2222222222 | H14: =COUNTIF('20 DÍAS (2 o más UA)'!N7:N8, ">10") -> 0 | J14: =CountCcolor('Solicitudes Acceso restringido'!$B$2,'Solicitudes Acceso restringido'!N9:N18) -> 0 | L14: =COUNT('5 DÍAS (1 UA)'!Y7:Y289) -> 282 | M14: ='5 DÍAS (1 UA)'!Y290 -> 0.06028368794 | N14: =COUNT('5 DIAS (2 o más UA)'!N7:N16) -> 0 | P14: 300
A15: SUMA/PROMEDIO | B15: =SUM(B3:B14) -> 210 | C15: =SUM(C3:C14)/12 -> 6.001336245 | D15: =SUM(D3:D14) -> 22 | E15: =SUM(E3:E14)/4 -> 20.88958333 | F15: =SUM(F3:F14) -> 282 | G15: =SUM(G3:G14)/12 -> 6.242211211 | H15: =SUM(H3:H14) -> 14 | I15: =SUM(I3:I14)/5 -> 16.4 | J15: =SUM(J3:J14) -> 1 | K15: 9 | L15: =SUM(L3:L14) -> 323 | M15: =SUM(M3:M14)/6 -> 3.622792379 | N15: =SUM(N3:N14) -> 26 | O15: =SUM(O3:O14)/11 -> 4.318181818 | P15: =SUM(C15+E15+G15+I15+K15+M15+O15)/7 -> 9.496300712
B16: 210 | D16: 22 | F16: 94 | H16: 14 | J16: 1 | L16: 323 | N16: 6 | P16: =SUM(B16:O16) -> 670
